{"text_format":"1","workbook":"xlsx","n_sheets":1,"sheets":["COMMANDE"],"not_rendered":{"charts":0,"images":1,"macros":1,"external_links":0,"defined_names":1,"comments":0,"pivot_tables":0},"unopened":[],"bounds":{"document_bytes":16777216,"sheet_cells":100000,"rows_first":2000,"rows_last":500,"rows_between":2000,"halvings":0,"cell_chars":16384,"cell_head_chars":4096},"cells_cut":0,"cells_raw":0,"read":"whole","date_system":"1900"}

{"sheet":"COMMANDE","index":0,"n_rows":42,"n_cols":5,"rows_kept":42,"cut":false,"hidden":false,"merged":[[0,2,0,4],[6,2,6,3],[4,1,4,4],[5,1,5,4],[8,1,8,2],[0,0,0,1],[36,0,39,0],[7,1,7,2],[3,3,3,4],[39,3,39,4],[37,3,37,4],[38,3,38,4]]}
["Tél, 04 92 67 04 70\n\nCourriel :\naspbb@wanadoo.fr",null,"Ce bon de commande est à adresser à :\nASPBB\n11 rue Varanfrain\n05700 SERRES"]
[]
["Adresse pour l'envoi des ouvrages ","Complétez les cases jaunes !"]
["NOM",null,"Prénom:"]
["Rue, N° :"]
["(suite) :"]
["Ville :",null,"Code postal :"]
["Tél. (facultatif) :"]
["Courriel (facultatif) :"]
[]
[null,null,"Q","PU","Total"]
["Carnets du patrimoine :","Un jour, un train,,,",null,15,{"$f":"IF(C12*D12=0,\"\",C12*D12)","v":""}]
["\"\"","Les Chambons à Serres",null,10,{"$f":"IF(C13*D13=0,\"\",C13*D13)","v":""}]
["\"\"","Pont la barque,…",null,10,""]
["\"\"","Le Buëch rivière à moulins",null,12,""]
["\"\"","Quand le Buëch se transforme",null,25,""]
["Le Bersac, souvenirs d'un village des Hautes-Alpes",null,null,22,""]
["Henri Gignoux capitaine d'industrie",null,null,22,""]
["Ferdinand Marrou artiste ferronnier",null,null,18,""]
["Le prieuré de Saint-André de Rosans et le village",null,null,15,""]
["Résistants dans les pays du Buëch",null,null,25,""]
["Armand Barniaudy, l'homme et ses actions",null,null,15,""]
["Ceux de Saint-Cyrice",null,null,20,""]
["Une gravure de Rembrandt dans les Hautes-Alpes",null,null,16,""]
["À la découverte de Serres",null,null,16,""]
["Guide de Saint-André de Rosans",null,null,10,""]
["Maisons monastiques médiévales",null,null,20,""]
["Guide de Lagrand",null,null,10,""]
["Le Buëch au fil des conférences (1999-2004)",null,null,5,""]
["Buëch et patrimoine (1996)",null,null,10,""]
["Terre d'abandon",null,null,12,""]
["Les Hautes-Alpes recherchent l'avion de Saint-Exupéry",null,null,6,""]
["Histoires en décors naturels",null,null,null,""]
["Églises médiévales des Hautes-Alpes",null,null,12,""]
["Puzzle d’art en bois (50 pièces environ),",null,null,25,""]
[null,null,null,null,""]
[{"$f":"\"Complétez ce bon de commande, imprimez-le et transmettez-le à l'ASPBB accompagné d'un chèque,\"&\" d'un montant de \"&D40&\" €.\nMerci ! \"","v":"Complétez ce bon de commande, imprimez-le et transmettez-le à l'ASPBB accompagné d'un chèque, d'un montant de 0 €.\nMerci ! "},"Nombre d'ouvrages :",{"$f":"SUM(C12:C36)","v":0}]
[null,"Montant :",null,{"$f":"SUM(E12:E36)","v":0}]
[null,"Participation aux frais de port :",null,{"$f":"IF(C37=0,\"\",IF(C37=1,9,11))","v":""}]
[null,"TOTAL DÛ ===>",null,{"$f":"IFERROR(D38+D39,0)","v":0}]
["Fait à ",{"$f":"B7","v":0}]
["Le  ",{"$f":"TODAY()","v":"2025-12-12"}]